bitfinex/quotes_ETHUSD_20250711
["timestamp","ask_amount","ask_price","bid_price","bid_amount"]
[1752270467785,9.84,2965.3,2965.2,20.6324]
[1752270467982,9.84,2965.3,2965.2,21.1824]
[1752270468297,11.07,2965.3,2965.2,21.61222823]
[1752270468989,11.07,2965.3,2965.2,21.1824]
[1752270469636,12.3,2965.3,2965.2,21.1824]
[1752270470850,13.53,2965.3,2965.2,21.1824]
[1752270472241,14.76,2965.3,2965.2,21.1824]
[1752270473743,15.99,2965.3,2965.2,21.1824]
[1752270474764,15.99,2965.3,2965.2,14.8956]
[1752270474947,15.99,2965.3,2965.2,30.1997]
[1752270475148,17.22,2965.3,2965.2,30.1997]
[1752270475594,17.22,2965.3,2965.2,30.666]
[1752270476696,18.45,2965.3,2965.2,30.666]
[1752270476892,18.45,2965.3,2965.2,30.834]
[1752270477099,18.45,2965.3,2965.2,30.3677]
[1752270477967,19.68,2965.3,2965.2,30.3677]
[1752270478166,19.68,2965.3,2965.2,33.87097]
[1752270478872,19.68,2965.3,2965.2,29.67197]
[1752270479073,19.68,2965.3,2965.2,21.59697]
[1752270479276,19.68,2965.3,2965.2,34.57252799]
[1752270479476,20.7418118,2965.3,2965.2,35.00235622]
[1752270479792,20.5736236,2965.3,2965.2,35.00235622]
[1752270480305,20.4054354,2965.3,2965.2,35.00235622]
[1752270480504,19.40566513,2965.3,2965.2,35.00235622]
[1752270481007,15.8228963,2965.3,2965.2,35.00235622]
[1752270481500,12.23802135,2965.3,2965.2,35.00235622]
[1752270482679,13.46802135,2965.3,2965.2,35.00235622]
[1752270484407,14.69802135,2965.3,2965.2,35.00235622]
[1752270484968,11.37205851,2965.3,2965.2,47.27435622]
[1752270485175,1.23,2965.6,2965.3,0.95143675]
[1752270485373,1.23,2965.6,2965.5,0.55]
[1752270485684,1.05453572,2965.6,2965.5,3.04563675]
[1752270485995,0.5689155,2965.6,2965.5,3.04563675]
[1752270486198,0.40076123,2965.6,2965.5,3.04563675]
[1752270486815,0.40076123,2965.6,2965.5,13.04563675]
[1752270486985,0.40076123,2965.6,2965.5,15.27507036]
[1752270487194,1.63076123,2965.6,2965.5,15.27507036]
[1752270488390,1.63076123,2965.6,2965.5,27.8491916]
[1752270488592,2.86076123,2965.6,2965.5,33.6851916]
[1752270490231,4.09076123,2965.6,2965.5,33.6841916]
[1752270491513,5.32076123,2965.6,2965.5,33.6841916]
[1752270493021,6.55076123,2965.6,2965.5,33.6841916]
[1752270493735,6.55076123,2965.6,2965.5,34.64773882]
[1752270494332,6.55076123,2965.6,2965.5,34.18143882]
[1752270494484,7.78076123,2965.6,2965.5,32.04231983]
[1752270495243,7.78076123,2965.6,2965.5,44.48131983]
[1752270495822,9.01076123,2965.6,2965.5,44.48131983]
[1752270496115,9.01076123,2965.6,2965.5,44.4952916]
[1752270496320,9.01076123,2965.6,2965.5,44.0259916]
[1752270496884,9.01076123,2965.6,2965.5,44.4922916]
[1752270497189,9.01076123,2965.6,2965.5,44.0259916]
[1752270497418,10.24076123,2965.6,2965.5,44.0259916]
[1752270497618,10.24076123,2965.6,2965.5,44.4942916]
[1752270498640,10.24076123,2965.6,2965.5,32.2232916]
[1752270498838,11.47076123,2965.6,2965.5,32.2232916]
[1752270499486,11.47076123,2965.6,2965.5,31.7549916]
[1752270499727,11.47076123,2965.6,2965.5,32.2232916]
[1752270500181,12.70076123,2965.6,2965.5,32.2232916]
[1752270501720,13.93076123,2965.6,2965.5,32.2232916]
[1752270502627,13.93076123,2965.6,2965.5,19.17787036]
[1752270503128,15.16076123,2965.6,2965.5,19.17787036]
[1752270504935,16.39076123,2965.6,2965.5,19.17787036]
[1752270505105,16.39076123,2965.6,2965.5,31.44887036]
[1752270506627,17.62076123,2965.6,2965.5,31.44887036]
[1752270506939,17.62076123,2965.6,2965.5,31.91717036]
[1752270507403,17.62076123,2965.6,2965.5,31.44887036]
[1752270508021,18.85076123,2965.6,2965.5,31.44887036]
[1752270508534,18.85076123,2965.6,2965.5,27.25087036]
[1752270508907,18.85076123,2965.6,2965.5,35.63000886]
[1752270509730,20.08076123,2965.6,2965.5,35.63000886]
[1752270510298,20.08076123,2965.6,2965.5,35.63200886]
[1752270510498,20.08076123,2965.6,2965.5,27.55900886]
[1752270510833,20.08176123,2965.6,2965.5,27.39100886]
[1752270510996,21.31176123,2965.6,2965.5,27.39100886]
[1752270512403,21.31176123,2965.6,2965.5,28.31163709]
[1752270512603,22.37361036,2965.6,2965.5,28.31163709]
[1752270513003,11.65153791,2965.6,2965.5,28.31163709]
[1752270513446,11.48338704,2965.6,2965.5,28.31163709]
[1752270513911,11.31523617,2965.6,2965.5,28.31163709]
[1752270514109,12.3770853,2965.6,2965.5,28.31163709]
[1752270514750,12.20893443,2965.6,2965.5,28.31163709]
[1752270514899,12.04078356,2965.6,2965.5,28.31163709]
[1752270515100,12.04078356,2965.6,2965.5,40.58263709]
[1752270515444,13.10263269,2965.6,2965.5,36.38463709]
[1752270515747,12.93448182,2965.6,2965.5,28.31163709]
[1752270515928,2.38056024,2965.6,2965.5,28.31163709]
[1752270516248,2.21240937,2965.6,2965.5,28.31163709]
[1752270516630,2.0442585,2965.6,2965.5,28.31163709]
[1752270516829,3.2742585,2965.6,2965.5,28.31163709]
[1752270517049,3.10610763,2965.6,2965.5,28.31163709]
[1752270517408,2.93795676,2965.6,2965.5,28.31163709]
[1752270517606,2.76980589,2965.6,2965.5,28.31163709]
[1752270518034,2.60167933,2965.6,2965.5,28.31163709]
[1752270518246,3.83167933,2965.6,2965.5,28.31163709]
[1752270518661,10.82942972,2966.0,2965.9,18.9291385]
[1752270518912,10.82942972,2966.0,2965.9,25.61487525]
[1752270519443,10.82942972,2966.0,2965.9,25.14657525]
[1752270519647,12.05942972,2966.0,2965.9,27.66123278]
[1752270521046,12.05942972,2966.0,2965.9,27.82923278]
[1752270521214,13.28942972,2966.0,2965.9,28.29753278]
[1752270521617,13.28942972,2966.0,2965.9,27.82923278]
[1752270521815,13.28942972,2966.0,2965.9,27.42779603]
[1752270522622,14.51942972,2966.0,2965.9,27.42779603]
[1752270523253,14.51942972,2966.0,2965.9,27.89609603]
[1752270523484,14.51942972,2966.0,2965.9,27.42779603]
[1752270523921,15.74942972,2966.0,2965.9,27.42779603]
[1752270524967,15.74942972,2966.0,2965.9,35.82179603]
[1752270525129,15.22365645,2966.0,2965.9,43.89379603]
[1752270525330,16.45365645,2966.0,2965.9,39.69679603]
[1752270526781,17.68365645,2966.0,2965.9,39.69679603]
[1752270528058,18.91365645,2966.0,2965.9,39.69679603]
[1752270528253,18.91365645,2966.0,2965.9,29.03189603]
[1752270528572,18.91365645,2966.0,2965.9,27.88012426]
[1752270528755,18.91365645,2966.0,2965.9,27.42779603]
[1752270529678,20.14365645,2966.0,2965.9,27.42779603]
[1752270531573,21.37365645,2966.0,2965.9,27.42779603]
[1752270532885,22.60365645,2966.0,2965.9,27.42779603]
[1752270533090,22.60365645,2966.0,2965.9,27.88209603]
[1752270533986,22.60365645,2966.0,2965.9,27.42779603]
[1752270534182,23.83365645,2966.0,2965.9,27.42779603]
[1752270534401,23.83365645,2966.0,2965.9,27.88209603]
[1752270534994,23.83365645,2966.0,2965.9,44.34709603]
[1752270535199,23.83365645,2966.0,2965.9,43.89279603]
[1752270535798,25.06365645,2966.0,2965.9,43.89279603]
[1752270536293,25.061435,2966.0,2965.9,43.89279603]
[1752270536463,25.061435,2966.0,2965.9,35.49879603]
[1752270537576,26.291435,2966.0,2965.9,35.49879603]
[1752270538968,27.521435,2966.0,2965.9,35.49879603]
[1752270539611,27.521435,2966.0,2965.9,27.42779603]
[1752270540505,28.751435,2966.0,2965.9,27.42779603]
[1752270541897,29.981435,2966.0,2965.9,27.42779603]
[1752270543588,31.211435,2966.0,2965.9,27.42779603]
[1752270544403,31.211435,2966.0,2965.9,27.88209603]
[1752270544903,31.211435,2966.0,2965.9,27.42779603]
[1752270545110,32.441435,2966.0,2965.9,43.89279603]
[1752270546384,33.671435,2966.0,2965.9,43.89279603]
[1752270548014,34.901435,2966.0,2965.9,43.89279603]
[1752270548423,34.901435,2966.0,2965.9,35.49879603]
[1752270548711,34.901435,2966.0,2965.9,35.95112426]
[1752270549472,36.131435,2966.0,2965.9,35.95112426]
[1752270549673,36.131435,2966.0,2965.9,35.49879603]
[1752270551090,37.361435,2966.0,2965.9,35.49879603]
[1752270551388,37.361435,2966.0,2965.9,27.42779603]
[1752270552824,38.591435,2966.0,2965.9,27.42779603]
[1752270555088,39.821435,2966.0,2965.9,39.69579603]
[1752270555521,39.821435,2966.0,2965.9,27.42779603]
[1752270556729,41.051435,2966.0,2965.9,27.42779603]
[1752270557826,14.86874792,2966.0,2965.9,31.04462426]
[1752270557990,16.09874792,2966.0,2965.9,32.37186334]
[1752270558399,15.93062814,2966.0,2965.9,32.37186334]
[1752270558612,15.76250836,2966.0,2965.9,32.37186334]
[1752270559125,15.59438858,2966.0,2965.9,32.37186334]
[1752270559626,16.6562688,2966.0,2965.9,31.44106612]
[1752270559830,16.48814902,2966.0,2965.9,31.44106612]
[1752270560195,16.32002924,2966.0,2965.9,31.44106612]
[1752270560796,17.55002924,2966.0,2965.9,31.44106612]
[1752270561035,17.38190946,2966.0,2965.9,31.44106612]
[1752270561430,17.21382416,2966.0,2965.9,31.44106612]
[1752270561824,17.04573886,2966.0,2965.9,31.44106612]
[1752270562023,18.27573886,2966.0,2965.9,31.44106612]
[1752270562225,18.10765356,2966.0,2965.9,31.44106612]
[1752270562614,17.93956826,2966.0,2965.9,31.44106612]
[1752270563124,17.77148296,2966.0,2965.9,31.44106612]
[1752270563326,17.60339766,2966.0,2965.9,31.44106612]
[1752270563535,18.83339766,2966.0,2965.9,31.44106612]
[1752270563713,18.66531236,2966.0,2965.9,31.44106612]
[1752270564901,19.89531236,2966.0,2965.9,31.44106612]
[1752270565104,19.89531236,2966.0,2965.9,47.90306612]
[1752270565341,19.89531236,2966.0,2965.9,43.70706612]
[1752270565644,19.72722706,2966.0,2965.9,39.51106612]
[1752270565944,19.55914176,2966.0,2965.9,31.44106612]
[1752270566149,19.55914176,2966.0,2965.9,32.37186334]
[1752270566304,20.62105646,2966.0,2965.9,32.37186334]
[1752270566807,20.45297116,2966.0,2965.9,32.37186334]
[1752270567021,20.28487625,2966.0,2965.9,32.37186334]
[1752270567431,20.11678134,2966.0,2965.9,32.37186334]
[1752270567856,21.17868643,2966.0,2965.9,32.37186334]
[1752270568056,21.17868643,2966.0,2965.9,23.02756612]
[1752270568256,21.63978643,2966.0,2965.9,28.42079603]
[1752270568559,21.63978643,2966.0,2965.9,28.97079603]
[1752270569757,22.40868643,2966.0,2965.9,28.97079603]
[1752270570967,23.63868643,2966.0,2965.9,28.97079603]
[1752270572972,24.86868643,2966.0,2965.9,28.97079603]
[1752270573772,26.38288643,2966.0,2965.9,13.20179603]
[1752270573917,26.84398643,2966.0,2965.9,15.9021385]
[1752270574421,28.07398643,2966.0,2965.9,16.4521385]
[1752270574621,28.07398643,2966.0,2965.9,10.1371385]
[1752270574820,28.07398643,2966.0,2965.9,7.52]
[1752270575031,28.07398643,2966.0,2965.9,14.024]
[1752270575267,28.07398643,2966.0,2965.9,9.66]
[1752270575468,28.07398643,2966.0,2965.9,15.422]
[1752270575674,29.30398643,2966.0,2965.9,15.422]
[1752270575954,29.30398643,2966.0,2965.9,25.422]
[1752270576171,29.30398643,2966.0,2965.9,15.422]
[1752270577335,30.53398643,2966.0,2965.9,25.422]
[1752270577779,30.53398643,2966.0,2965.9,13.113]
[1752270577981,30.53398643,2966.0,2965.9,13.109]
[1752270578390,30.53398643,2966.0,2965.9,23.109]
[1752270578743,31.76398643,2966.0,2965.9,23.109]
[1752270580207,32.99398643,2966.0,2965.9,23.109]
[1752270581824,34.22398643,2966.0,2965.9,23.109]
[1752270583195,35.36060696,2966.0,2965.9,23.109]
[1752270584679,36.59060696,2966.0,2965.9,23.109]
[1752270585005,36.59060696,2966.0,2965.9,35.38]
[1752270586308,37.82060696,2966.0,2965.9,35.38]
[1752270587523,39.05060696,2966.0,2965.9,35.38]
[1752270588226,39.05060696,2966.0,2965.9,23.109]
[1752270588987,40.28060696,2966.0,2965.9,23.109]
[1752270591432,41.51060696,2966.0,2965.9,23.109]
[1752270593084,41.51060696,2966.0,2965.9,13.109]
[1752270593290,42.74060696,2966.0,2965.9,13.109]
[1752270594602,43.97060696,2966.0,2965.9,23.109]
[1752270595132,43.97060696,2966.0,2965.9,35.381]
[1752270596422,45.20060696,2966.0,2965.9,35.381]
[1752270596889,45.20060696,2966.0,2965.9,35.383]
[1752270597290,45.20160696,2966.0,2965.9,35.383]
[1752270597698,0.55,2965.9,2965.0,0.002]
[1752270597925,0.55,2965.9,2963.1,1.645747]
[1752270597926,0.55,2965.2,2965.1,8.074]
[1752270598205,1.0034,2965.2,2963.5,1.13513531]
[1752270598402,0.168,2964.3,2964.1,5.739]
[1752270598626,0.4534,2964.2,2964.1,5.739]
[1752270598937,1.7375,2964.1,2963.5,0.96713531]
[1752270599143,2.1909,2964.1,2964.0,6.15136357]
[1752270599365,3.4209,2964.1,2964.0,6.15136357]
[1752270599844,1.5695,2964.0,2963.5,0.96713531]
[1752270600046,1.5695,2963.8,2963.5,0.96713531]
[1752270600249,1.5695,2963.8,2963.4,0.99405922]
[1752270600250,0.4534,2963.7,2963.2,1.02098314]
[1752270600453,1.5695,2963.4,2963.2,1.02098314]
[1752270600773,1.5695,2963.2,2963.0,1.04790705]
[1752270601252,1.5695,2963.2,2963.1,5.738]
[1752270601762,2.0229,2963.2,2963.1,15.738]
[1752270601909,3.2529,2963.2,2963.1,15.738]
[1752270602231,2.7995,2963.2,2963.1,15.738]
[1752270602605,1.23,2963.2,2963.1,15.738]
[1752270602951,2.83782076,2963.2,2963.1,17.5240738]
[1752270603434,2.46,2963.2,2963.1,18.5315738]
[1752270604705,3.69,2963.2,2963.1,18.5315738]
[1752270605123,3.69,2963.2,2963.1,30.8095738]
[1752270605844,3.69,2963.2,2963.1,26.6095738]
[1752270606151,4.92,2963.2,2963.1,26.6095738]
[1752270607336,6.15,2963.2,2963.1,18.5315738]
[1752270608826,7.38,2963.2,2963.1,18.5315738]
[1752270609567,1.23,2963.8,2963.4,0.55]
[1752270609872,1.23,2964.1,2963.7,12.2029]
[1752270610024,1.23,2964.1,2964.0,23.1445433]
[1752270610219,1.23,2964.1,2964.0,29.0435433]
[1752270610220,2.46,2964.1,2964.0,29.0435433]
[1752270610424,2.46,2964.1,2964.0,32.40539763]
[1752270611672,0.4534,2965.5,2964.1,0.55]
[1752270611971,0.4534,2965.5,2964.6,0.55]
[1752270612137,0.4534,2965.5,2964.8,0.55]
[1752270612340,0.6214,2965.5,2965.0,0.168]
[1752270612561,0.6214,2965.5,2965.1,5.729]
[1752270613173,1.8514,2965.5,2965.1,5.729]
[1752270613881,1.23,2965.5,2965.1,5.729]
[1752270614626,0.4534,2965.4,2965.1,5.729]
[1752270614831,0.4534,2965.3,2965.2,5.726]
[1752270615074,0.4534,2965.3,2965.2,28.003]
[1752270616072,1.6834,2965.3,2965.2,28.003]
[1752270617586,2.9134,2965.3,2965.2,28.003]
[1752270618043,3.495393,2965.3,2965.2,28.003]
[1752270618367,3.495393,2965.3,2965.2,23.799]
[1752270618942,4.725393,2965.3,2965.2,23.799]
[1752270620272,4.725393,2965.3,2965.2,15.722]
[1752270620438,5.955393,2965.3,2965.2,15.722]
[1752270621676,5.501993,2965.3,2965.2,15.722]
[1752270621868,6.731993,2965.3,2965.2,15.719]
[1752270622182,7.166093,2965.3,2965.2,15.719]
[1752270622389,6.15,2965.3,2965.2,15.719]
[1752270622990,6.15,2965.3,2965.2,16.7394]
[1752270623143,7.38,2965.3,2965.2,16.7394]
[1752270624188,7.38,2965.3,2965.2,16.9074]
[1752270624689,8.61,2965.3,2965.2,16.9074]
[1752270624873,8.61,2965.3,2965.2,18.74862]
[1752270625146,8.61,2965.3,2965.2,31.02562]
[1752270625787,8.61,2965.3,2965.2,26.82562]
[1752270625981,9.84,2965.3,2965.2,26.82562]
[1752270627397,11.07,2965.3,2965.2,26.82562]
[1752270627973,11.07,2965.3,2965.2,18.27822]
[1752270628293,11.07,2965.3,2965.2,16.269]
[1752270628656,12.3,2965.3,2965.2,16.269]
[1752270630111,13.53,2965.3,2965.2,16.269]
[1752270631326,13.53,2965.3,2965.2,16.7394]
[1752270631621,14.76,2965.3,2965.2,16.7394]
[1752270631925,14.76,2965.3,2965.2,19.82327433]
[1752270632995,15.99,2965.3,2965.2,19.82327433]
[1752270633199,15.99,2965.3,2965.2,21.33847433]
[1752270633396,3.67709149,2965.3,2965.2,21.33847433]
[1752270634515,4.90709149,2965.3,2965.2,21.33847433]
[1752270634711,4.90709149,2965.3,2965.2,21.46195586]
[1752270634914,4.87599149,2965.3,2965.2,21.46195586]
[1752270635138,4.87599149,2965.3,2965.2,33.73695586]
[1752270635626,2.46,2965.5,2965.2,33.73695586]
[1752270635627,2.46,2965.5,2965.4,2.0652]
[1752270635813,2.46,2965.5,2965.4,22.84293889]
[1752270636009,44.45630696,2966.0,2965.7,0.55]
[1752270636226,44.45630696,2966.0,2965.9,23.1445433]
[1752270636434,44.45630696,2966.0,2965.9,23.6149433]
[1752270637224,45.68630696,2966.0,2965.9,23.6149433]
[1752270637430,45.68630696,2966.0,2965.9,26.54673763]
[1752270637829,45.16050696,2966.0,2965.9,26.54673763]
[1752270638241,45.16050696,2966.0,2965.9,26.71473763]
[1752270638737,46.39050696,2966.0,2965.9,26.71473763]
[1752270639097,46.39050696,2966.0,2965.9,26.96107307]
[1752270640036,35.30759845,2966.0,2965.9,26.96107307]
[1752270640437,22.99468994,2966.0,2965.9,26.96107307]
[1752270640617,22.99468994,2966.0,2965.9,28.61567307]
[1752270640952,22.99468994,2966.0,2965.9,0.41433544]
[1752270641120,1.5929,2965.9,2964.6,12.5945433]
[1752270641327,0.4341,2965.8,2964.7,5.73073022]
[1752270641507,1.5929,2965.7,2964.8,6.247]
[1752270641698,0.4341,2965.6,2964.8,6.37510291]
[1752270642038,0.4341,2965.6,2964.8,5.82510291]
[1752270642841,0.4341,2965.6,2964.9,5.695]
[1752270643140,1.6641,2965.6,2964.9,5.695]
[1752270643341,1.23,2965.6,2965.0,10.0]
[1752270643520,0.4341,2965.5,2965.2,10.0]
[1752270643844,0.4341,2965.5,2965.4,10.0]
[1752270644459,1.6641,2965.5,2965.4,10.0]
[1752270645266,1.6641,2965.5,2965.4,22.272]
[1752270645860,2.8941,2965.5,2965.4,22.272]
[1752270647259,4.1241,2965.5,2965.4,18.074]
[1752270648465,3.69,2965.5,2965.4,18.074]
[1752270648676,4.92,2965.5,2965.4,18.074]
[1752270648828,5.3515,2965.5,2965.4,18.074]
[1752270649961,5.3515,2965.5,2965.4,10.0]
[1752270650262,6.5815,2965.5,2965.4,10.0]
[1752270651268,6.7495,2965.5,2965.4,10.0]
[1752270651426,7.9795,2965.5,2965.4,10.0]
[1752270651980,9.58732076,2965.5,2965.4,10.0]
[1752270652477,2.0909,2965.3,2962.9,1.07683096]
[1752270652630,1.5409,2965.0,2962.9,1.07683096]
[1752270652965,1.5409,2964.6,2963.2,5.689]
[1752270653166,0.55,2964.2,2963.3,10.0]
[1752270653343,1.5409,2964.0,2963.5,10.0]
[1752270653540,0.55,2963.6,2962.9,1.07683096]
[1752270653733,1.8724,2963.5,2962.9,1.07683096]
[1752270653932,1.5409,2963.3,2962.9,1.07683096]
[1752270654333,0.3315,2963.2,2962.9,1.07683096]
[1752270655063,0.3315,2963.2,2963.1,17.963]
[1752270655643,1.5615,2963.2,2963.1,17.963]
[1752270655843,1.5615,2963.2,2963.1,27.963]
[1752270657258,2.7915,2963.2,2963.1,27.963]
[1752270658431,2.46,2963.2,2963.1,27.963]
[1752270658631,3.69,2963.2,2963.1,27.963]
[1752270658979,3.69,2963.2,2963.1,17.963]
[1752270660342,4.92,2963.2,2963.1,17.963]
[1752270661660,6.15,2963.2,2963.1,17.963]
[1752270662191,7.04209,2963.2,2961.9,1.23837444]
[1752270662335,7.04209,2963.2,2962.5,8.08]
[1752270662336,0.55,2962.9,2962.5,8.08]
[1752270662536,0.55,2962.9,2961.9,1.23837444]
[1752270662787,0.55,2962.7,2961.9,1.23837444]
[1752270662988,0.55,2962.5,2961.9,1.13837444]
[1752270663174,0.55,2962.3,2961.9,1.13837444]
[1752270663379,1.5891,2962.2,2961.9,1.13837444]
[1752270663611,0.55,2962.0,2961.9,1.13837444]
[1752270663802,0.55,2961.8,2961.7,1.26329836]
[1752270664131,0.55,2961.6,2961.2,1.3440701]
[1752270664266,0.55,2961.9,2961.2,1.3440701]
[1752270664468,0.55,2961.4,2961.1,1.37099401]
[1752270664830,1.5576,2961.2,2961.1,1.37099401]
[1752270664960,1.77151,2961.2,2961.1,9.45099401]
[1752270665168,2.35301,2961.2,2961.1,9.45099401]
[1752270665782,2.35301,2961.2,2961.1,15.13799401]
[1752270665965,2.35301,2961.2,2960.4,5.67968966]
[1752270665966,0.55,2961.1,2960.4,5.67968966]
[1752270666166,0.55,2961.1,2960.8,13.769]
[1752270666365,0.55,2960.9,2960.8,13.769]
[1752270666604,0.5815,2960.9,2960.8,13.769]
[1752270667111,0.8486,2960.9,2960.8,13.769]
[1752270667310,2.0786,2960.9,2960.8,13.769]
[1752270667971,12.3115,2960.9,2960.1,1.53253749]
[1752270668194,0.55,2960.7,2960.1,1.53253749]
[1752270668380,0.55,2960.5,2960.1,1.53253749]
[1752270668709,1.05,2960.3,2959.9,1.5594614]
[1752270668910,9.67398392,2960.6,2959.9,1.5594614]
[1752270668911,0.55,2960.1,2959.9,1.5594614]
[1752270669069,0.0315,2960.2,2959.9,1.5594614]
[1752270669403,0.0315,2960.5,2960.0,5.686]
[1752270669578,0.5815,2960.4,2959.9,1.5594614]
[1752270669778,0.0315,2960.3,2960.0,11.373]
[1752270670309,1.23,2960.4,2960.0,11.373]
[1752270670790,1.23,2960.4,2960.0,11.8446]
[1752270670992,1.23,2960.4,2960.1,10.4716]
[1752270671373,2.46,2960.4,2960.1,10.4716]
[1752270671704,2.46,2960.4,2960.2,0.4716]
[1752270671867,2.46,2960.4,2960.3,21.8456]
[1752270672808,3.69,2960.4,2960.3,21.8456]
[1752270673016,3.69,2960.4,2960.3,23.4949]
[1752270673713,3.69,2960.4,2960.3,21.8456]
[1752270674190,4.92,2960.4,2960.3,24.20253384]
[1752270674601,4.92,2960.4,2960.3,21.8456]
[1752270675111,4.92,2960.4,2960.3,34.1386]
[1752270675522,6.15,2960.4,2960.3,22.293]
[1752270675730,6.15,2960.4,2960.3,17.978]
[1752270675922,6.94266208,2960.4,2960.3,17.978]
[1752270676515,6.94266208,2960.4,2960.3,27.978]
[1752270677441,8.17266208,2960.4,2960.3,27.978]
[1752270677793,4.099,2960.3,2958.9,5.92700488]
[1752270677993,0.55,2959.5,2959.2,8.089]
[1752270678238,14.1305,2959.4,2959.3,5.684]
[1752270678406,4.099,2959.1,2958.9,1.72100488]
[1752270678932,10.0,2959.0,2958.9,1.72100488]
[1752270679303,14.099,2959.0,2958.9,1.72100488]
[1752270679498,14.099,2959.0,2958.9,7.40500488]
[1752270680025,1.23,2959.4,2958.9,7.40500488]
[1752270680228,1.78,2959.0,2958.9,7.40500488]
[1752270680431,1.78,2959.0,2958.1,1.85562445]
[1752270680748,1.78,2959.0,2958.7,5.684]
[1752270681039,0.55,2958.8,2958.7,5.684]
[1752270681607,1.78,2958.8,2958.7,5.684]
[1752270682344,1.78,2958.8,2958.1,1.85562445]
[1752270682628,1.78,2958.8,2958.7,5.684]
[1752270683041,0.55,2958.6,2958.1,1.85562445]
[1752270684297,0.55,2958.6,2958.4,5.685]
[1752270684501,1.78,2958.6,2958.4,5.685]
[1752270684942,1.78,2958.6,2958.3,0.68576269]
[1752270685246,1.78,2958.6,2958.4,8.093]
[1752270685465,1.78,2958.6,2958.5,8.093]
[1752270685640,1.78,2958.6,2958.1,1.85562445]
[1752270685846,0.55,2958.4,2958.1,1.85562445]
[1752270686374,0.55,2958.4,2958.2,11.37]
[1752270686564,10.55,2958.2,2957.8,1.25309119]
[1752270686966,10.55,2958.2,2957.5,1.9653201]
[1752270687288,0.55,2957.9,2957.6,0.72614856]
[1752270687639,0.55,2957.9,2957.6,0.27230571]
[1752270688051,0.55,2957.9,2957.7,11.371]
[1752270688709,1.23,2957.9,2957.7,11.371]
[1752270689220,1.23,2957.9,2957.8,11.37]
[1752270689866,1.78,2957.9,2957.8,11.372]
[1752270690067,13.01,2957.9,2957.8,11.372]
[1752270690283,0.1688,2957.8,2957.6,0.27230571]
[1752270690466,12.46,2957.9,2957.6,0.27230571]
[1752270690670,0.55,2957.8,2957.6,0.27230571]
[1752270691258,1.78,2957.8,2957.6,0.27230571]
[1752270691879,1.78,2957.8,2957.7,11.372]
[1752270692858,3.01,2957.8,2957.7,11.372]
[1752270693315,2.46,2957.8,2957.7,11.372]
[1752270693614,2.46,2957.8,2957.7,11.8153]
[1752270694409,3.69,2957.8,2957.7,13.4351]
[1752270695063,3.69,2957.8,2957.7,25.7431]
[1752270695667,4.92,2957.8,2957.7,25.7431]
[1752270697439,6.15,2957.8,2957.7,25.7431]
[1752270697634,6.15,2957.8,2957.7,21.5331]
[1752270698719,6.3188,2957.8,2957.7,21.5331]
[1752270698896,7.5488,2957.8,2957.7,21.5331]
[1752270700552,8.7788,2957.8,2957.7,15.81217258]
[1752270701437,8.7788,2957.8,2957.7,25.81217258]
[1752270701613,8.61,2957.8,2957.7,25.81217258]
[1752270701817,9.84,2957.8,2957.7,25.81217258]
[1752270702213,8.1706859,2957.8,2957.7,25.81217258]
[1752270702419,1.23,2958.2,2957.9,2.1278]
[1752270702619,0.28,2958.2,2958.1,11.7466]
[1752270702860,0.28,2958.2,2958.1,12.7399]
[1752270703062,2.46,2958.6,2958.1,12.7399]
[1752270703268,2.46,2958.6,2958.4,1.5778]
[1752270703475,2.46,2958.6,2958.5,23.3851]
[1752270703629,2.6288,2958.6,2958.5,23.3851]
[1752270704281,2.6288,2958.6,2958.5,24.89435369]
[1752270704441,3.8588,2958.6,2958.5,24.89435369]
[1752270705045,3.8588,2958.6,2958.5,37.20035369]
[1752270705773,5.0888,2958.6,2958.5,37.20035369]
[1752270706268,4.92,2958.6,2958.5,37.20035369]
[1752270706866,4.921,2958.6,2958.5,37.20035369]
[1752270707244,6.151,2958.6,2958.5,37.20035369]
[1752270708847,7.381,2958.6,2958.5,37.20035369]
[1752270709449,7.381,2958.6,2958.5,19.46]
[1752270709651,7.381,2958.6,2958.5,19.452]
[1752270709983,7.381,2958.6,2958.5,19.8842]
[1752270710166,8.611,2958.6,2958.5,19.8842]
[1752270711887,9.841,2958.6,2958.5,19.8842]
[1752270712096,9.841,2958.6,2958.5,11.353]
[1752270712460,10.2734,2958.6,2958.5,11.353]
[1752270713152,11.5034,2958.6,2958.5,11.353]
[1752270714468,12.7334,2958.6,2958.5,11.353]
[1752270715056,12.7334,2958.6,2958.5,23.657]
[1752270715354,1.5637,2958.4,2958.0,4.209]
[1752270715582,0.4324,2958.3,2958.1,8.095]
[1752270715785,1.5637,2958.2,2958.1,8.095]
[1752270715987,1.23,2958.3,2958.1,8.095]
[1752270716391,1.6624,2958.3,2958.2,11.35]
[1752270717395,2.8924,2958.3,2958.2,11.35]
[1752270717604,2.46,2958.3,2958.2,11.35]
[1752270718784,3.69,2958.3,2958.2,11.35]
[1752270719509,7.30882076,2958.3,2958.2,11.349]
[1752270719813,7.30882076,2958.3,2958.2,11.35]
[1752270720007,5.701,2958.3,2958.2,11.35]
[1752270720198,6.931,2958.3,2958.2,11.35]
[1752270721467,8.161,2958.3,2958.2,11.35]
[1752270722201,7.7286,2958.3,2958.2,11.35]
[1752270723013,8.9586,2958.3,2958.2,11.35]
[1752270724615,10.1886,2958.3,2958.2,11.35]
[1752270725112,10.1886,2958.3,2958.2,23.657]
[1752270725411,8.61,2958.3,2958.2,23.657]
[1752270726002,9.84,2958.3,2958.2,23.657]
[1752270727336,11.07,2958.3,2958.2,23.657]
[1752270727532,11.07,2958.3,2958.2,24.0892]